bitfinex-derivatives/quotes_BTCF0:USTF0_20241117
["timestamp","ask_amount","ask_price","bid_price","bid_amount"]
[1731804520430,0.19837102,90799.0,90794.0,0.11013701]
[1731804520632,0.19837102,90798.0,90794.0,0.11013701]
[1731804520817,0.05353113,90797.0,90796.0,0.055038]
[1731804521021,0.14437925,90797.0,90796.0,0.055038]
[1731804521222,0.14437925,90802.0,90796.0,0.055038]
[1731804521522,0.19791038,90801.0,90796.0,0.1651744]
[1731804521724,0.19791038,90800.0,90796.0,0.1651744]
[1731804522029,0.23052834,90803.0,90796.0,0.1651744]
[1731804522030,0.19791038,90799.0,90796.0,0.1651744]
[1731804522336,0.19791038,90798.0,90796.0,0.1651744]
[1731804522527,0.65202135,90804.0,90796.0,0.1101364]
[1731804522528,0.05353113,90797.0,90796.0,0.1101364]
[1731804522724,0.13193123,90802.0,90796.0,0.02650814]
[1731804522933,0.13193123,90802.0,90797.0,0.20780572]
[1731804523120,0.13193123,90802.0,90799.0,0.19748065]
[1731804523320,0.36650001,90804.0,90800.0,0.19748065]
[1731804523529,0.36650001,90804.0,90803.0,0.055033]
[1731804523530,0.3659,90804.0,90803.0,0.055033]
[1731804523732,0.3659,90804.0,90803.0,0.26283868]
[1731804524220,0.3659,90804.0,90803.0,0.37297144]
[1731804524531,0.3659,90804.0,90803.0,0.17549079]
[1731804524830,0.3659,90804.0,90803.0,0.37293541]
[1731804525030,0.3659,90804.0,90803.0,0.17549079]
[1731804526428,0.3659,90804.0,90803.0,0.23168162]
[1731804528237,0.0051,90804.0,90803.0,0.23168162]
[1731804528435,0.0051,90804.0,90803.0,0.49485419]
[1731804529030,0.0051,90804.0,90803.0,0.23168162]
[1731804529334,0.0051,90804.0,90803.0,0.49482111]
[1731804529731,0.0051,90804.0,90803.0,0.23168162]
[1731804530241,0.0051,90804.0,90803.0,0.49482111]
[1731804530424,0.0051,90804.0,90803.0,0.23168162]
[1731804530946,0.13703123,90804.0,90803.0,0.23168162]
[1731804531242,0.0051,90804.0,90803.0,0.23168162]
[1731804531428,0.13703123,90804.0,90803.0,0.23168162]
[1731804531632,0.0051,90804.0,90803.0,0.23168162]
[1731804532935,0.13193123,90816.0,90813.0,0.055027]
[1731804533139,0.13193123,90816.0,90803.0,0.17664862]
[1731804533140,0.13193123,90816.0,90815.0,0.12449441]
[1731804533336,0.16491404,90819.0,90818.0,0.055024]
[1731804533537,0.1318439,90819.0,90818.0,0.055024]
[1731804533728,0.1318439,90819.0,90818.0,0.06534903]
[1731804534146,0.1318442,90819.0,90818.0,0.1754636]
[1731804534642,0.1318442,90821.0,90818.0,0.1754636]
[1731804534834,0.1318442,90821.0,90819.0,0.01032503]
[1731804535035,0.13194511,90820.0,90819.0,0.01032503]
[1731804535233,0.00010091,90820.0,90819.0,0.01032503]
[1731804535546,0.00010091,90820.0,90819.0,0.12043354]
[1731804540142,0.00010091,90820.0,90819.0,0.11010851]
[1731804540439,0.00010091,90820.0,90819.0,0.16382177]
[1731804540745,0.00010091,90820.0,90819.0,0.1741435]
[1731804541743,0.00010091,90820.0,90819.0,0.16382177]
[1731804542142,0.00010091,90820.0,90819.0,0.21884577]
[1731804542336,0.00010091,90820.0,90819.0,0.11010851]
[1731804542535,0.00010091,90820.0,90819.0,0.16513251]
[1731804542735,0.00010091,90820.0,90819.0,0.055024]
[1731804542948,0.00010091,90820.0,90819.0,0.16513251]
[1731804543745,0.00010091,90820.0,90819.0,0.11010851]
[1731804543949,0.055026,90816.0,90811.0,0.19732916]
[1731804544244,0.055026,90816.0,90782.0,0.82141813]
[1731804544245,0.43026841,90812.0,90792.0,0.26310555]
[1731804544549,0.43026841,90812.0,90788.0,0.06946841]
[1731804544550,0.3608,90800.0,90788.0,0.06946841]
[1731804544748,0.3608,90800.0,90799.0,0.01197555]
[1731804545049,0.447135,90800.0,90799.0,0.01197555]
[1731804547051,0.447135,90800.0,90799.0,0.00165179]
[1731804547343,0.3608,90800.0,90799.0,0.16682055]
[1731804547752,0.3608,90800.0,90799.0,0.17714578]
[1731804550943,0.16491404,90805.0,90799.0,0.17714578]
[1731804551247,0.13166576,90801.0,90800.0,0.01032523]
[1731804551845,0.3608,90803.0,90800.0,0.12045496]
[1731804552044,0.3608,90803.0,90800.0,0.11012973]
[1731804552045,0.055035,90801.0,90800.0,0.11012973]
[1731804552241,0.055035,90801.0,90800.0,0.12045458]
[1731804552751,0.055035,90801.0,90800.0,0.11012973]
[1731804554445,0.055035,90801.0,90800.0,0.16516473]
[1731804554645,0.3608,90803.0,90800.0,0.11012973]
[1731804554839,0.3608,90803.0,90802.0,0.055034]
[1731804555548,0.055032,90805.0,90799.0,0.00165179]
[1731804555856,0.0331,90806.0,90805.0,0.055032]
[1731804556948,0.088132,90806.0,90805.0,0.055032]
[1731804559173,0.055034,90802.0,90801.0,0.055034]
[1731804559656,0.3304,90802.0,90800.0,0.11012548]
[1731804559853,0.055035,90800.0,90799.0,0.00165179]
[1731804560759,0.385435,90800.0,90799.0,0.00165179]
[1731804561256,0.055035,90800.0,90799.0,0.00165179]
[1731804564561,0.055035,90800.0,90771.0,0.26310555]
[1731804564562,0.055052,90772.0,90771.0,0.26310555]
[1731804564859,0.415852,90772.0,90771.0,0.01032666]
[1731804565047,0.415852,90772.0,90761.0,0.055059]
[1731804565244,0.415852,90772.0,90759.0,0.0308]
[1731804565549,0.415852,90772.0,90759.0,0.08586]
[1731804566057,0.415852,90772.0,90759.0,0.0308]
[1731804566058,0.10586993,90771.0,90759.0,0.0308]
[1731804566255,0.10586993,90771.0,90762.0,0.055058]
[1731804567455,0.47152991,90772.0,90768.0,0.055054]
[1731804567658,0.47088991,90772.0,90768.0,0.055054]
[1731804570369,0.415852,90772.0,90768.0,0.055054]
[1731804571365,0.415852,90772.0,90766.0,0.05437135]
[1731804571565,0.3608,90772.0,90771.0,0.11016734]
[1731804571949,0.055047,90781.0,90771.0,0.12049508]
[1731804572155,0.055047,90781.0,90773.0,0.055052]
[1731804572351,0.055047,90781.0,90774.0,0.01032774]
[1731804572559,0.3608,90782.0,90774.0,0.11016734]
[1731804572766,0.05505,90776.0,90774.0,0.11016734]
[1731804572963,0.055052,90772.0,90768.0,0.055054]
[1731804573163,0.3608,90771.0,90769.0,0.12048821]
[1731804573368,0.415853,90771.0,90770.0,0.01032815]
[1731804573972,0.415853,90771.0,90770.0,0.1204967]
[1731804575855,0.3608,90771.0,90770.0,0.1204967]
[1731804576559,0.05505,90776.0,90770.0,0.1755497]
[1731804576773,0.05505,90776.0,90771.0,0.01032815]
[1731804577065,0.05505,90776.0,90772.0,0.01032815]
[1731804577272,0.05505,90776.0,90770.0,0.055053]
[1731804577273,0.05505,90776.0,90773.0,0.01032815]
[1731804577460,0.05505,90776.0,90774.0,0.01032815]
[1731804577663,0.05505,90776.0,90775.0,0.01032815]
[1731804578461,0.05505,90776.0,90775.0,0.12049185]
[1731804580165,0.05505,90776.0,90775.0,0.1101637]
[1731804580565,0.055057,90765.0,90761.0,0.085359]
[1731804580774,0.315858,90771.0,90762.0,0.06538658]
[1731804580967,0.315858,90771.0,90766.0,0.11016188]
[1731804581167,0.055053,90770.0,90767.0,0.01032858]
[1731804581373,0.055053,90770.0,90768.0,0.01032858]
[1731804581572,0.315858,90771.0,90764.0,0.11016188]
[1731804581573,0.055057,90765.0,90764.0,0.11016188]
[1731804581872,0.055057,90765.0,90764.0,0.01032893]
[1731804582461,0.055057,90765.0,90764.0,0.1204993]
[1731804589775,0.16092693,90765.0,90764.0,0.1204993]
[1731804590379,0.16092693,90765.0,90764.0,0.01032893]
[1731804592675,0.055058,90762.0,90761.0,0.055059]
[1731804592987,0.415858,90762.0,90761.0,0.055059]
[1731804593482,0.415858,90762.0,90761.0,0.16523423]
[1731804594978,0.415858,90762.0,90761.0,0.11017523]
[1731804595179,0.54793533,90762.0,90761.0,0.37328078]
[1731804595483,0.54793533,90762.0,90761.0,0.26310555]
[1731804595683,0.54793533,90762.0,90761.0,0.37328442]
[1731804595887,0.415858,90762.0,90761.0,0.37328442]
[1731804596984,0.415858,90762.0,90761.0,0.38361421]
[1731804600191,0.415858,90762.0,90761.0,0.12050866]
[1731804600192,0.54784085,90762.0,90761.0,0.12050866]
[1731804600376,0.415858,90762.0,90761.0,0.12050866]
[1731804600581,0.54783647,90762.0,90761.0,0.12050866]
[1731804601490,0.54783687,90762.0,90761.0,0.12050866]
[1731804601693,0.415858,90762.0,90761.0,0.11017887]
[1731804601887,0.415858,90762.0,90761.0,0.12050855]
[1731804604488,0.415858,90762.0,90761.0,0.17556755]
[1731804608392,0.3608,90762.0,90761.0,0.17556755]
[1731804609491,0.3608,90762.0,90761.0,0.4386731]
[1731804610488,0.3608,90762.0,90761.0,0.17556755]
[1731804613889,0.13197887,90766.0,90763.0,0.055058]
[1731804614097,0.13197887,90766.0,90764.0,0.04242968]
[1731804614288,0.13197887,90766.0,90765.0,0.01032968]
[1731804614485,0.13197887,90766.0,90765.0,0.15170855]
[1731804615196,0.13197887,90766.0,90765.0,0.20676555]
[1731804615395,0.13197887,90766.0,90765.0,0.23746555]
[1731804616198,0.13197887,90767.0,90765.0,0.23746555]
[1731804616400,0.3608,90770.0,90766.0,0.01032968]
[1731804616595,0.3608,90770.0,90767.0,0.01032968]
[1731804616798,0.3608,90770.0,90768.0,0.01032968]
[1731804616994,0.3608,90770.0,90769.0,0.01032968]
[1731804617189,0.23052834,90787.0,90769.0,0.01032968]
[1731804617190,0.16491404,90774.0,90769.0,0.01032968]
[1731804617493,0.36646001,90781.0,90769.0,0.01032968]
[1731804617494,0.13207474,90773.0,90771.0,0.06953034]
[1731804617792,0.36140001,90781.0,90771.0,0.06953034]
[1731804617793,0.13207474,90774.0,90773.0,0.055052]
[1731804617995,0.13207474,90775.0,90774.0,0.055051]
[1731804618195,0.13207474,90775.0,90774.0,0.06538068]
[1731804618498,0.1320459,90778.0,90774.0,0.01032968]
[1731804618702,0.1320459,90778.0,90776.0,0.06953034]
[1731804618888,0.1320459,90779.0,90778.0,0.055049]
[1731804619089,0.1320459,90779.0,90778.0,0.06537868]
[1731804619398,0.1320459,90779.0,90778.0,0.17554177]
[1731804619587,0.4928459,90781.0,90778.0,0.12049277]
[1731804619787,0.4928459,90781.0,90780.0,0.055047]
[1731804620091,0.4928459,90781.0,90780.0,0.06537668]
[1731804620507,0.055043,90788.0,90780.0,0.12048792]
[1731804620508,0.1320459,90783.0,90780.0,0.12048792]
[1731804620796,0.1320459,90789.0,90781.0,0.11096002]
[1731804621002,0.00165301,90791.0,90788.0,0.055043]
[1731804621305,0.00165301,90791.0,90782.0,0.01032968]
[1731804621306,0.00165301,90791.0,90789.0,0.06537168]
[1731804621506,0.00165301,90791.0,90790.0,0.01032968]
[1731804622699,0.05542386,90791.0,90790.0,0.01032968]
[1731804623302,0.00165301,90791.0,90790.0,0.17551436]
[1731804625004,0.00165301,90791.0,90790.0,0.53631436]
[1731804625396,0.00165301,90791.0,90790.0,0.59124721]
[1731804628903,0.00165301,90791.0,90790.0,0.23044721]
[1731804635219,0.00165301,90791.0,90790.0,0.25247343]
[1731804637918,0.0303,90817.0,90801.0,0.055035]
[1731804638216,0.0051,90813.0,90812.0,0.055028]
[1731804638400,0.0303,90817.0,90801.0,0.56936534]
[1731804638401,0.0303,90817.0,90814.0,0.055027]
[1731804638601,0.39376001,90818.0,90815.0,0.06953034]
[1731804638915,0.00010091,90820.0,90819.0,0.055024]
[1731804639612,0.00010091,90820.0,90819.0,0.16513736]
[1731804641614,0.00010091,90820.0,90819.0,0.16306348]
[1731804645226,9.1e-07,90820.0,90819.0,0.59339382]
[1731804645427,9.1e-07,90820.0,90819.0,0.60371588]
[1731804646126,0.00165199,90826.0,90825.0,0.05502]
[1731804646323,0.00165199,90826.0,90825.0,0.48535034]
[1731804646519,0.00165199,90826.0,90825.0,0.49567158]
[1731804646719,0.00165199,90826.0,90825.0,0.59545885]
[1731804646914,0.00165199,90826.0,90825.0,0.63168374]
[1731804647115,0.00165199,90826.0,90825.0,0.63177571]
[1731804647325,0.0051,90834.0,90825.0,0.57675571]
[1731804647513,0.0051,90834.0,90828.0,0.055018]
[1731804647715,0.00084513,90841.0,90828.0,0.0653389]
[1731804647716,0.0051,90840.0,90828.0,0.0653389]
[1731804648230,0.0051,90840.0,90828.0,0.16511741]
[1731804650342,0.0051,90840.0,90828.0,0.17543755]
[1731804652219,0.0051,90840.0,90828.0,0.23083432]
[1731804655733,0.0051,90840.0,90828.0,0.56111432]
[1731804656220,7.2e-07,90829.0,90828.0,0.56111432]
[1731804656544,0.00107174,90835.0,90834.0,0.055015]
[1731804656835,0.0051,90846.0,90845.0,0.055008]
[1731804657043,0.00081682,90847.0,90846.0,0.16076223]
[1731804657219,0.00081682,90847.0,90846.0,0.20328237]
[1731804657629,0.00081682,90847.0,90846.0,0.31337997]
[1731804658129,0.00081682,90847.0,90846.0,0.33395983]
[1731804658323,0.00081682,90847.0,90846.0,0.39034186]
[1731804659232,0.00081682,90847.0,90846.0,0.40065948]
[1731804660731,0.00081682,90847.0,90846.0,0.39034186]
[1731804661448,0.00081682,90847.0,90846.0,0.40065901]
[1731804661621,0.00081682,90847.0,90846.0,0.39034186]
[1731804662119,0.00081682,90847.0,90846.0,1.11194186]
[1731804663039,0.00081682,90847.0,90846.0,0.75114186]
[1731804663423,0.00081682,90847.0,90846.0,0.76145911]
[1731804665236,0.00081682,90847.0,90846.0,0.39034186]
[1731804665427,0.00081682,90847.0,90846.0,1.11194186]
[1731804668719,0.00081682,90847.0,90846.0,1.07555272]
[1731804669232,8.2e-07,90847.0,90846.0,1.14498819]
[1731804669542,0.00090509,90853.0,90852.0,0.055004]
[1731804669839,0.00090509,90853.0,90852.0,0.30921618]
[1731804670227,0.00090509,90853.0,90852.0,0.41928469]
[1731804670542,0.00114778,90859.0,90858.0,0.055]
[1731804670835,0.00114778,90859.0,90858.0,0.55453218]
[1731804671230,0.00114778,90859.0,90858.0,0.66459342]
[1731804672038,0.00114778,90859.0,90858.0,0.71854878]
[1731804672238,0.00114778,90859.0,90858.0,0.72886565]
[1731804673044,0.00088067,90865.0,90858.0,0.67386565]
[1731804673337,0.00088067,90865.0,90860.0,0.415799]
[1731804673521,0.00088067,90865.0,90860.0,0.42611587]
[1731804673927,0.00088067,90865.0,90860.0,0.53617469]
[1731804679637,0.00088067,90865.0,90864.0,0.12436309]
[1731804679834,0.00088067,90865.0,90864.0,0.13467996]
[1731804680342,0.00088067,90865.0,90864.0,0.23441949]
[1731804680527,0.00088067,90865.0,90864.0,0.24473519]
[1731804682435,0.00088067,90865.0,90864.0,0.44061145]
[1731804682742,0.00088067,90865.0,90864.0,0.24473519]
[1731804683534,0.00088067,90865.0,90864.0,0.44061145]
[1731804684030,0.00088067,90865.0,90864.0,0.80141145]
[1731804684431,0.00088067,90865.0,90864.0,0.60553519]
[1731804685544,0.00088067,90865.0,90864.0,0.86902803]
[1731804686556,0.00088067,90865.0,90864.0,0.60553519]
[1731804688654,0.00088067,90865.0,90864.0,0.5361691]
[1731804688939,0.00088067,90865.0,90864.0,0.60553519]
[1731804691531,0.00088067,90865.0,90864.0,0.5361691]
[1731804691934,0.00088067,90865.0,90864.0,0.60553519]
[1731804692546,0.00088067,90865.0,90864.0,0.9345009]
[1731804693334,0.00088067,90865.0,90864.0,0.5737009]
[1731804693539,0.00088067,90865.0,90864.0,1.25083962]
[1731804693936,0.00088067,90865.0,90864.0,0.9345009]
[1731804694149,0.00088067,90865.0,90864.0,1.25057744]
[1731804694342,0.00088067,90865.0,90864.0,1.25059396]
[1731804694542,0.00088067,90865.0,90864.0,1.2505998]
[1731804695049,0.00088067,90865.0,90864.0,1.18123371]
[1731804695238,0.00088067,90865.0,90864.0,1.18147916]
[1731804695557,0.00088067,90865.0,90864.0,0.92187954]
[1731804696139,0.00088067,90865.0,90864.0,0.80223433]
[1731804696446,0.00088067,90865.0,90864.0,0.59521949]
[1731804699250,0.00088067,90865.0,90864.0,0.85748501]
[1731804699450,0.00088067,90865.0,90864.0,0.8577376]
[1731804699750,0.00088067,90865.0,90864.0,0.59521949]
[1731804701147,0.00088067,90865.0,90864.0,0.85780445]
[1731804701463,0.00088067,90865.0,90864.0,0.59521949]
[1731804702454,0.1320459,90870.0,90869.0,0.054993]
[1731804702455,0.07103458,90870.0,90869.0,0.054993]
[1731804702660,0.07103458,90870.0,90869.0,0.22959909]
[1731804702950,0.00109889,90871.0,90870.0,0.054993]
[1731804703160,0.00109889,90871.0,90870.0,0.05511127]
[1731804703338,0.00109889,90871.0,90870.0,0.38294317]
[1731804703543,0.00109889,90871.0,90870.0,0.47857075]
[1731804703851,0.00109889,90871.0,90870.0,0.80677513]
[1731804704050,0.00109889,90871.0,90870.0,0.85199562]
[1731804705152,0.0008549,90877.0,90876.0,0.054989]
[1731804705353,0.0008549,90877.0,90876.0,0.86793274]
[1731804705543,0.0008549,90877.0,90876.0,1.26160715]
[1731804705741,0.00091005,90883.0,90882.0,0.12435209]
[1731804705944,0.00091005,90883.0,90882.0,0.54300365]
[1731804706454,0.00091005,90883.0,90882.0,0.65304309]
[1731804707263,0.00091005,90883.0,90882.0,0.33963153]
[1731804707444,0.00091005,90883.0,90882.0,0.98117965]
[1731804707650,0.00091005,90883.0,90882.0,0.33963153]
[1731804708643,0.00091005,90883.0,90882.0,0.11003944]
[1731804708843,0.00091005,90883.0,90882.0,0.06003944]
[1731804708844,0.81614114,90883.0,90882.0,0.06003944]
[1731804709042,0.81614114,90883.0,90881.0,0.16130693]
[1731804709043,0.48606114,90883.0,90881.0,0.16130693]
[1731804709253,0.385066,90882.0,90881.0,0.18907267]
[1731804709560,0.385066,90882.0,90872.0,0.10524]
[1731804709561,0.054987,90880.0,90872.0,0.17460609]
[1731804709754,0.43163615,90883.0,90872.0,0.17460609]
[1731804709755,0.00155693,90876.0,90872.0,0.17460609]
[1731804709955,0.00155693,90876.0,90873.0,0.11003218]
[1731804710650,0.00155693,90876.0,90874.0,0.05499]
[1731804710959,0.00155693,90875.0,90874.0,0.05499]
[1731804711157,0.19945378,90875.0,90874.0,0.05499]
[1731804711345,0.05504371,90875.0,90874.0,0.05499]
[1731804711658,0.05504371,90875.0,90874.0,0.16503126]
[1731804711659,0.25294056,90875.0,90874.0,0.16503126]
[1731804711843,0.05504371,90875.0,90874.0,0.16503126]
[1731804712556,0.05504293,90875.0,90874.0,0.16503126]
[1731804713767,0.05499,90874.0,90870.0,0.00011827]
[1731804714068,0.054992,90871.0,90870.0,0.00011827]
[1731804714360,0.108478,90871.0,90870.0,0.00011827]
[1731804714662,0.108478,90871.0,90870.0,0.11016014]
[1731804715045,0.11003493,90871.0,90870.0,0.11016014]
[1731804715460,0.25419189,90871.0,90870.0,0.11016014]
[1731804715647,0.30767789,90871.0,90870.0,0.11016014]
[1731804716262,0.1100417,90871.0,90870.0,0.00940032]
[1731804717345,0.1100417,90871.0,90870.0,0.00947785]
[1731804717963,0.4402017,90871.0,90870.0,0.00947785]
[1731804718165,0.4402017,90871.0,90870.0,7.753e-05]
[1731804718353,0.054998,90862.0,90861.0,0.054998]
[1731804718550,0.10849077,90862.0,90861.0,0.054998]
[1731804718968,0.10849077,90862.0,90861.0,0.16504471]
[1731804719159,0.05655493,90862.0,90861.0,0.16504471]
[1731804723670,0.05655493,90862.0,90861.0,0.11004671]
[1731804724167,0.054998,90861.0,90858.0,0.06936609]
[1731804724461,0.054998,90861.0,90859.0,0.11005761]
[1731804725181,0.00155693,90860.0,90859.0,0.11005761]
[1731804729259,0.00566001,90872.0,90859.0,0.1794237]
[1731804729461,0.0051,90881.0,90871.0,0.06936609]
[1731804729657,0.415786,90882.0,90881.0,0.06936609]
[1731804730269,0.3608,90882.0,90881.0,0.06936609]
[1731804730478,0.3608,90882.0,90881.0,0.17939948]
[1731804732467,0.3608,90882.0,90881.0,0.21249948]
[1731804733158,0.3608,90882.0,90881.0,0.14313339]
[1731804733763,0.3608,90882.0,90872.0,0.18919132]
[1731804733764,0.99092,90882.0,90872.0,0.0308]
[1731804733966,0.3608,90873.0,90872.0,0.0308]
[1731804735469,0.415791,90873.0,90872.0,0.0308]
[1731804738471,0.47133172,90873.0,90872.0,0.0308]
[1731804739371,0.415791,90873.0,90872.0,0.0308]
[1731804740970,0.745911,90873.0,90872.0,0.0308]
[1731804742375,0.745911,90873.0,90858.0,0.0651]
[1731804742376,0.91051766,90873.0,90858.0,0.0651]
[1731804742570,0.4158,90859.0,90858.0,0.0651]
[1731804743064,0.4158,90859.0,90858.0,0.17514429]
[1731804745570,0.4158,90859.0,90858.0,0.0651]
[1731804746075,0.4158,90859.0,90839.0,0.02201183]
[1731804746076,0.055,90858.0,90845.0,0.05665886]
[1731804746273,0.055007,90847.0,90846.0,0.0965]
[1731804746469,0.055007,90847.0,90846.0,0.26156824]
[1731804747975,0.415807,90847.0,90846.0,0.26156824]
[1731804748779,0.415807,90847.0,90846.0,0.20656124]
[1731804751884,0.36144,90858.0,90857.0,0.055001]
[1731804752080,0.4158,90858.0,90857.0,0.055001]
[1731804753374,0.4158,90858.0,90851.0,0.055004]
[1731804753375,0.055004,90852.0,90851.0,0.055004]
[1731804754472,0.055004,90852.0,90851.0,0.16507372]
[1731804754877,0.055001,90857.0,90856.0,0.055001]
[1731804755583,0.055001,90857.0,90856.0,0.16507072]
[1731804758171,0.055001,90857.0,90856.0,0.11006972]
[1731804758571,0.055003,90854.0,90853.0,0.055003]
[1731804763394,0.18666506,90854.0,90853.0,0.055003]
[1731804764283,0.055003,90854.0,90853.0,0.055003]
[1731804764990,0.13166206,90855.0,90846.0,0.0965]
[1731804765179,0.13166206,90856.0,90855.0,0.055002]
[1731804765377,0.3608,90858.0,90846.0,0.0965]
[1731804765577,0.13175083,90857.0,90855.0,0.1100673]
[1731804765784,0.3608,90858.0,90855.0,0.1100673]
[1731804765989,0.13174803,90857.0,90846.0,0.151507]
[1731804766187,0.13174769,90857.0,90847.0,0.1100673]
[1731804766489,0.13176559,90856.0,90855.0,0.055002]
[1731804767089,0.13176559,90856.0,90855.0,0.16506567]
[1731804767791,0.13176559,90857.0,90856.0,0.055001]
[1731804768281,0.3608,90858.0,90857.0,0.055001]
[1731804769884,0.054999,90860.0,90846.0,0.151507]
[1731804770084,0.054999,90860.0,90859.0,0.055]
[1731804770887,0.16470514,90863.0,90859.0,0.17943614]
[1731804771200,0.05419171,90865.0,90864.0,0.054997]
[1731804771201,0.16470514,90865.0,90864.0,0.054997]
[1731804771400,0.05349624,90865.0,90864.0,0.054997]
[1731804771789,0.10849224,90865.0,90864.0,0.054997]
[1731804773895,0.055,90858.0,90857.0,0.055]
[1731804774091,0.055,90858.0,90857.0,0.06531855]
[1731804774297,0.055,90858.0,90857.0,0.055]
[1731804774496,0.055,90858.0,90857.0,0.16505398]
[1731804774886,0.1648956,90860.0,90859.0,0.055]
[1731804775091,0.1648956,90861.0,90860.0,0.054999]
[1731804775294,0.3608,90866.0,90865.0,0.054996]
[1731804775295,0.5256956,90866.0,90865.0,0.054996]
[1731804775495,0.3608,90866.0,90865.0,0.054996]
[1731804775886,0.3608,90866.0,90865.0,0.149296]
[1731804776206,0.3608,90866.0,90865.0,0.25935603]
[1731804777891,0.05598581,90869.0,90868.0,0.054994]
[1731804778088,0.1648956,90870.0,90865.0,0.20436003]
[1731804778294,0.1648956,90871.0,90870.0,0.054993]
[1731804783403,0.58136051,90872.0,90866.0,0.05421199]
[1731804783608,0.5807605,90872.0,90871.0,0.054992]
[1731804783907,0.6357525,90872.0,90871.0,0.054992]
[1731804784098,0.63562676,90872.0,90871.0,0.054992]
[1731804785700,0.4708569,90872.0,90871.0,0.054992]
[1731804786207,0.63562676,90872.0,90871.0,0.054992]
[1731804786394,0.63562676,90872.0,90865.0,0.0943]
[1731804786395,0.67355357,90872.0,90865.0,0.0943]
[1731804786596,0.19769784,90866.0,90865.0,0.0943]
[1731804787009,0.19769784,90866.0,90865.0,0.2043455]
[1731804787404,0.05349261,90866.0,90865.0,0.2043455]
[1731804787593,0.19769784,90867.0,90865.0,0.2593415]
[1731804787901,0.25118455,90866.0,90865.0,0.2043455]
[1731804788109,0.05349323,90866.0,90865.0,0.2593415]
[1731804788295,0.05349323,90866.0,90865.0,0.2043455]
[1731804788493,0.19769132,90868.0,90865.0,0.2043455]
[1731804789807,0.19769132,90868.0,90867.0,0.054995]
[1731804790002,0.25118295,90868.0,90867.0,0.054995]
[1731804790300,0.1100569,90872.0,90865.0,0.0943]
[1731804790301,0.05349163,90871.0,90865.0,0.0943]
[1731804790507,0.05349163,90870.0,90867.0,0.11005034]
[1731804790811,0.1100569,90872.0,90867.0,0.11005034]
[1731804790812,0.19769927,90868.0,90867.0,0.054995]
[1731804791103,0.25119055,90868.0,90867.0,0.054995]
[1731804791299,0.05349128,90868.0,90865.0,0.0943]
[1731804791497,0.25120477,90867.0,90866.0,0.054995]
[1731804791700,0.05349128,90867.0,90866.0,0.16504534]
[1731804791891,0.19771349,90868.0,90867.0,0.054995]
[1731804792091,0.05349094,90868.0,90866.0,0.11005034]
[1731804792308,0.05348993,90867.0,90866.0,0.054995]
[1731804792504,0.19771349,90870.0,90869.0,0.054993]
[1731804792712,0.19771349,90870.0,90869.0,0.06531028]
[1731804793400,0.13182327,90870.0,90869.0,0.01031728]
[1731804793594,0.00064,90876.0,90869.0,0.5983582]
[1731804793791,0.5312791,90887.0,90882.0,0.054986]
[1731804793999,0.36140001,90887.0,90882.0,0.06530202]
[1731804794201,0.3608,90887.0,90882.0,0.06530202]
[1731804794403,0.3608,90887.0,90882.0,0.1753342]
[1731804795298,0.3608,90887.0,90882.0,0.16501818]
[1731804795610,0.3608,90887.0,90882.0,0.28102908]
[1731804796098,0.3608,90887.0,90882.0,0.27071353]
[1731804796411,0.00113509,90889.0,90882.0,0.97190866]
[1731804796606,0.00113509,90889.0,90888.0,0.054982]
[1731804797011,0.00113509,90889.0,90888.0,0.06529632]
[1731804797215,0.00113509,90889.0,90888.0,0.16501418]
[1731804799609,0.00113509,90889.0,90888.0,0.17532829]
[1731804800296,0.00113509,90889.0,90888.0,0.16501418]
[1731804800996,0.00113509,90889.0,90888.0,0.52581418]
[1731804801198,0.00113509,90889.0,90888.0,0.53612823]
[1731804802002,0.00113509,90889.0,90888.0,0.52581418]
[1731804803308,0.00113509,90889.0,90888.0,0.85589418]
[1731804804113,0.00113509,90889.0,90888.0,0.86620813]
[1731804804801,0.00113509,90889.0,90888.0,1.00480355]
[1731804805700,0.00113509,90889.0,90888.0,0.86620813]
[1731804805901,0.00113509,90889.0,90888.0,0.26812813]
[1731804806697,0.00113509,90889.0,90888.0,0.25781418]
[1731804807006,0.00113509,90889.0,90888.0,0.26812822]
[1731804807204,0.00113509,90889.0,90888.0,0.25781418]
[1731804807514,0.00113509,90889.0,90888.0,0.11003218]
[1731804807713,0.00113509,90889.0,90883.0,0.0634]
[1731804807714,0.054989,90885.0,90883.0,0.0928]
[1731804807914,0.3608,90884.0,90883.0,0.0928]
[1731804809104,0.3608,90884.0,90883.0,0.147791]
[1731804810015,0.3608,90884.0,90883.0,0.054991]
[1731804810316,0.41579,90884.0,90883.0,0.054991]
[1731804821622,0.05499,90884.0,90883.0,0.054991]
[1731804821924,0.054997,90873.0,90871.0,0.054998]
[1731804822131,0.3608,90872.0,90871.0,0.054998]
[1731804822430,0.3608,90872.0,90871.0,0.16502897]
[1731804822612,0.3608,90872.0,90871.0,0.054998]
[1731804822814,0.3608,90872.0,90871.0,0.16504289]
[1731804835236,0.3608,90872.0,90871.0,0.22864289]
[1731804837139,0.16424318,90877.0,90876.0,0.054995]
[1731804837327,0.16424318,90878.0,90876.0,0.054995]
[1731804837526,0.16424318,90877.0,90876.0,0.054995]
[1731804837729,0.21923718,90878.0,90876.0,0.054995]
[1731804837924,0.054994,90877.0,90876.0,0.054995]
[1731804838135,0.21923718,90877.0,90876.0,0.054995]
[1731804838336,0.054994,90877.0,90876.0,0.054995]
[1731804838535,0.10848513,90877.0,90876.0,0.054995]
[1731804838731,0.05349113,90877.0,90876.0,0.23439371]
[1731804838934,0.16478618,90877.0,90876.0,0.17939871]
[1731804839338,0.16478618,90878.0,90877.0,0.054994]
[1731804840028,0.3608,90881.0,90876.0,0.06935927]
[1731804840234,0.3608,90881.0,90876.0,0.12435427]
[1731804840235,0.16479642,90877.0,90876.0,0.12435427]
[1731804840639,0.16479642,90877.0,90876.0,0.23439129]
[1731804842349,0.16479642,90877.0,90876.0,0.24470813]
[1731804842648,0.3608,90881.0,90878.0,0.054993]
[1731804842848,0.0534878,90880.0,90876.0,0.17939629]
[1731804843048,0.0534878,90880.0,90879.0,0.054993]
[1731804843534,0.1084798,90880.0,90879.0,0.054993]
[1731804844549,0.0534878,90880.0,90879.0,0.054993]
[1731804845145,0.25120129,90880.0,90879.0,0.054993]
[1731804845850,0.0534878,90880.0,90879.0,0.054993]
[1731804846649,0.52564195,90881.0,90876.0,0.06935927]
[1731804846835,0.52564195,90881.0,90880.0,0.054992]
[1731804847347,0.3608,90881.0,90880.0,0.054992]
[1731804847542,0.41428895,90881.0,90880.0,0.054992]
[1731804848355,0.46928095,90881.0,90880.0,0.054992]